[Event "22nd ETCC Women 2019"]
[Site "Batumi"]
[Date "2019.10.30"]
[Round "6.3"]
[White "Mammadova, Gulnar"]
[Black "Girya, Olga"]
[Result "1/2-1/2"]
[ECO "B12"]
[WhiteElo "2369"]
[BlackElo "2476"]
[Annotator "ChessBase"]
[PlyCount "171"]
[EventDate "2019.10.24"]
[EventType "team-tourn"]
[EventCountry "GEO"]
[SourceTitle "playchess.com"]
[Source "ChessBase"]
[SourceQuality "1"]
[WhiteTeam "Azerbaijan"]
[BlackTeam "Russia"]
[WhiteTeamCountry "AZE"]
[BlackTeamCountry "RUS"]
[TimeControl "40/5400+30:1800+30"]

1. e4 {[%emt 0:00:00]} c6 {[%emt 0:00:00]} 2. d4 {[%emt 0:00:00]} d5 {[%emt 0:00:00]} 3. e5 {[%emt 0:00:00]} Bf5 {[%emt 0:00:01]} 4. Nd2 {[%emt 0:00:02]} e6 {[%emt 0:00:45]} 5. Nb3 {[%emt 0:00:17]} Nd7 {[%emt 0:00:46]} 6. Nf3 {[%emt 0:00:19]} c5 {[%emt 0:01:19]} 7. dxc5 {[%emt 0:01:42]} a6 {[%emt 0:00:10]} 8. Be2 {[%emt 0:03:40]} Bxc5 {[%emt 0:00:52]} 9. Nxc5 {[%emt 0:01:17]} Nxc5 {[%emt 0:00:08]} 10. Nd4 {[%emt 0:00:32]} Ne7 {[%emt 0:01:06]} 11. O-O {[%emt 0:01:57]} O-O {[%emt 0:00:41]} 12. c3 {[%emt 0:04:03]} Qc7 {[%emt 0:06:16]} 13. f4 {[%emt 0:03:07]} b5 {[%emt 0:07:57]} 14. Be3 {[%emt 0:03:34]} Be4 {[%emt 0:01:58]} 15. Rc1 {[%emt 0:03:42]} Rfc8 {[%emt 0:17:20]} 16. Qd2 {[%emt 0:06:36]} Qd7 {[%emt 0:02:55]} 17. b4 {[%emt 0:06:09]} Na4 {[%emt 0:02:18]} 18. Nb3 {[%emt 0:03:48]} Nf5 {[%emt 0:05:23]} 19. Nc5 {[%emt 0:02:51]} Qa7 {[%emt 0:12:37]} 20. Bf2 {[%emt 0:03:41]} Nxc5 {[%emt 0:00:11]} 21. bxc5 {[%emt 0:08:40]} Qc7 {[%emt 0:02:26]} 22. Bd3 {[%emt 0:05:40]} Qa5 {[%emt 0:03:50]} 23. g4 {[%emt 0:08:03]} Ne7 {[%emt 0:02:42]} 24. Bxe4 {[%emt 0:02:11]} dxe4 {[%emt 0:00:01]} 25. Rfe1 {[%emt 0:01:31]} Rd8 {[%emt 0:03:08]} 26. Qc2 {[%emt 0:02:36]} Rd5 {[%emt 0:04:40]} 27. Rxe4 {[%emt 0:01:51]} Nc6 {[%emt 0:01:27]} 28. Ree1 {[%emt 0:03:04]} Rad8 {[%emt 0:01:36]} 29. Rcd1 {[%emt 0:05:17]} g5 {[%emt 0:07:17]} 30. Rxd5 {[%emt 0:02:26]} Rxd5 {[%emt 0:00:02]} 31. fxg5 {[%emt 0:06:55]} Nxe5 {[%emt 0:02:42]} 32. Rd1 {[%emt 0:03:20]} Qd8 {[%emt 0:02:23]} 33. Rxd5 {[%emt 0:00:24]} Qxd5 {[%emt 0:00:02]} 34. Bd4 {[%emt 0:00:26]} Nf3+ {[%emt 0:02:06]} 35. Kf2 {[%emt 0:00:29]} Nxg5 {[%emt 0:01:08]} 36. h4 {[%emt 0:03:48]} Qf3+ {[%emt 0:05:26]} 37. Ke1 {[%emt 0:00:04]} Qh1+ {[%emt 0:00:09]} 38. Kd2 {[%emt 0:00:21]} Qxh4 {[%emt 0:02:30]} 39. Qd1 {[%emt 0:00:48]} e5 {[%emt 0:01:51]} 40. Be3 {[%emt 0:00:00]} Ne4+ {[%emt 0:00:00]} 41. Kc2 {[%emt 0:07:30]} Qh2+ {[%emt 0:09:41]} 42. Kb3 {[%emt 0:01:43]} Qh3 {[%emt 0:03:09]} 43. Qe2 {[%emt 0:03:52]} Qh1 {[%emt 0:04:59]} 44. Kb2 {[%emt 0:03:32]} Nf6 {[%emt 0:00:59]} 45. Bg5 {[%emt 0:06:44]} Nd7 {[%emt 0:01:53]} 46. Qd2 {[%emt 0:00:12]} Qc6 {[%emt 0:00:38]} 47. Be7 {[%emt 0:00:19]} f6 {[%emt 0:01:18]} 48. g5 {[%emt 0:00:29]} f5 {[%emt 0:00:39]} 49. Bd6 {[%emt 0:01:22]} Nxc5 {[%emt 0:02:18]} 50. Bxe5 {[%emt 0:01:43]} Na4+ {[%emt 0:00:31]} 51. Kc1 {[%emt 0:01:11]} Qh1+ {[%emt 0:00:05]} 52. Qd1 {[%emt 0:00:15]} Qxd1+ {[%emt 0:00:05]} 53. Kxd1 {[%emt 0:00:04]} Kf7 {[%emt 0:00:04]} 54. Kd2 {[%emt 0:01:36]} Ke6 {[%emt 0:00:58]} 55. Bd4 {[%emt 0:01:37]} Kd5 {[%emt 0:01:59]} 56. Ke3 {[%emt 0:00:28]} Nb2 {[%emt 0:00:59]} 57. Kf4 {[%emt 0:01:41]} Ke6 {[%emt 0:00:01]} 58. Kg3 {[%emt 0:00:43]} Nd3 {[%emt 0:00:46]} 59. Kh4 {[%emt 0:00:29]} Nf4 {[%emt 0:01:03]} 60. Ba7 {[%emt 0:02:10]} Kf7 {[%emt 0:02:49]} 61. Bb8 {[%emt 0:01:04]} Ne2 {[%emt 0:01:28]} 62. Kh5 {[%emt 0:00:06]} Nxc3 {[%emt 0:02:20]} 63. Kh6 {[%emt 0:00:15]} Kg8 {[%emt 0:01:44]} 64. g6 {[%emt 0:00:12]} hxg6 {[%emt 0:00:04]} 65. Kxg6 {[%emt 0:00:02]} Nxa2 {[%emt 0:00:38]} 66. Kxf5 {[%emt 0:00:02]} Kf7 {[%emt 0:00:38]} 67. Ke5 {[%emt 0:00:25]} b4 {[%emt 0:02:37]} 68. Kd5 {[%emt 0:00:25]} b3 {[%emt 0:00:38]} 69. Be5 {[%emt 0:00:05]} a5 {[%emt 0:00:27]} 70. Kc4 {[%emt 0:01:04]} a4 {[%emt 0:00:08]} 71. Bb2 {[%emt 0:00:16]} Ke6 {[%emt 0:00:38]} 72. Kb5 {[%emt 0:00:30]} Kd5 {[%emt 0:00:25]} 73. Kxa4 {[%emt 0:00:15]} Kc4 {[%emt 0:00:02]} 74. Bf6 {[%emt 0:02:07]} Nc3+ {[%emt 0:01:01]} 75. Ka3 {[%emt 0:00:05]} Nd5 {[%emt 0:00:35]} 76. Bg7 {[%emt 0:00:15]} Nf4 {[%emt 0:00:15]} 77. Kb2 {[%emt 0:00:58]} Ne6 {[%emt 0:00:03]} 78. Bf6 {[%emt 0:00:18]} Nc5 {[%emt 0:00:04]} 79. Ka3 {[%emt 0:01:12]} Kd3 {[%emt 0:00:37]} 80. Kb2 {[%emt 0:00:10]} Kc4 {[%emt 0:00:31]} 81. Ka3 {[%emt 0:00:12]} Nd3 {[%emt 0:00:01]} 82. Bg7 {[%emt 0:00:12]} Nf2 {[%emt 0:00:33]} 83. Bf6 {[%emt 0:00:35]} Nd1 {[%emt 0:00:05]} 84. Bg7 {[%emt 0:00:14]} b2 {[%emt 0:00:29]} 85. Bxb2 {[%emt 0:00:04]} Nxb2 {[%emt 0:00:02]} 86. Kxb2 {[%emt 0:00:03]} 1/2-1/2

[Event "22nd ETCC Women 2019"]
[Site "Batumi"]
[Date "2019.10.30"]
[Round "6.4"]
[White "Gunina, Valentina"]
[Black "Mamedjarova, Turkan"]
[Result "1/2-1/2"]
[ECO "C84"]
[WhiteElo "2509"]
[BlackElo "2314"]
[Annotator "ChessBase"]
[PlyCount "89"]
[EventDate "2019.10.24"]
[EventType "team-tourn"]
[EventCountry "GEO"]
[SourceTitle "playchess.com"]
[Source "ChessBase"]
[SourceQuality "1"]
[WhiteTeam "Russia"]
[BlackTeam "Azerbaijan"]
[WhiteTeamCountry "RUS"]
[BlackTeamCountry "AZE"]
[TimeControl "40/5400+30:1800+30"]

1. e4 {[%emt 0:00:00]} e5 {[%emt 0:00:00]} 2. Nf3 {[%emt 0:00:00]} Nc6 {[%emt 0:00:00]} 3. Bb5 {[%emt 0:00:00]} a6 {[%emt 0:00:07]} 4. Ba4 {[%emt 0:00:00]} Nf6 {[%emt 0:00:54]} 5. O-O {[%emt 0:00:29]} Be7 {[%emt 0:04:50]} 6. d3 {[%emt 0:00:52]} b5 {[%emt 0:00:31]} 7. Bb3 {[%emt 0:00:06]} d6 {[%emt 0:00:56]} 8. a4 {[%emt 0:00:52]} b4 {[%emt 0:04:14]} 9. a5 {[%emt 0:00:32]} O-O {[%emt 0:01:18]} 10. h3 {[%emt 0:00:54]} Be6 {[%emt 0:05:44]} 11. Nbd2 {[%emt 0:01:13]} Bxb3 {[%emt 0:03:01]} 12. Nxb3 {[%emt 0:00:35]} d5 {[%emt 0:03:20]} 13. Qe2 {[%emt 0:03:20]} Re8 {[%emt 0:03:09]} 14. Bg5 {[%emt 0:04:24]} h6 {[%emt 0:03:25]} 15. Bxf6 {[%emt 0:02:59]} Bxf6 {[%emt 0:00:08]} 16. Nh2 {[%emt 0:00:15]} Be7 {[%emt 0:05:42]} 17. Qf3 {[%emt 0:02:37]} dxe4 {[%emt 0:03:18]} 18. dxe4 {[%emt 0:00:24]} Nd4 {[%emt 0:01:01]} 19. Nxd4 {[%emt 0:03:28]} Qxd4 {[%emt 0:01:33]} 20. b3 {[%emt 0:00:36]} Red8 {[%emt 0:03:05]} 21. Ng4 {[%emt 0:03:33]} Bg5 {[%emt 0:13:33]} 22. Rad1 {[%emt 0:10:29]} Qc5 {[%emt 0:04:48]} 23. Rd5 {[%emt 0:00:27]} Rxd5 {[%emt 0:02:10]} 24. exd5 {[%emt 0:00:02]} Re8 {[%emt 0:01:37]} 25. Qe4 {[%emt 0:17:55]} Qxa5 {[%emt 0:03:39]} 26. Nxe5 {[%emt 0:09:14]} Qb6 {[%emt 0:11:28]} 27. Qf5 {[%emt 0:08:38]} Qf6 {[%emt 0:00:09]} 28. Qxf6 {[%emt 0:00:06]} Bxf6 {[%emt 0:00:02]} 29. Nd3 {[%emt 0:01:05]} a5 {[%emt 0:01:45]} 30. Rd1 {[%emt 0:09:22]} Re2 {[%emt 0:02:22]} 31. Ne1 {[%emt 0:02:02]} Bd4 {[%emt 0:06:48]} 32. Rxd4 {[%emt 0:01:16]} Rxe1+ {[%emt 0:00:03]} 33. Kh2 {[%emt 0:00:03]} Re5 {[%emt 0:05:09]} 34. f4 {[%emt 0:03:40]} Re2 {[%emt 0:00:06]} 35. Rc4 {[%emt 0:00:04]} Rd2 {[%emt 0:00:08]} 36. Rc5 {[%emt 0:00:02]} Kf8 {[%emt 0:00:42]} 37. Kg3 {[%emt 0:05:26]} Ke8 {[%emt 0:00:11]} 38. Kf3 {[%emt 0:02:32]} Kd7 {[%emt 0:00:25]} 39. g3 {[%emt 0:00:37]} Kd6 {[%emt 0:01:39]} 40. Rc6+ {[%emt 0:00:00]} Kd7 {[%emt 0:00:00]} 41. Rc5 {[%emt 0:05:00]} Kd6 {[%emt 0:01:26]} 42. Rc6+ {[%emt 0:03:56]} Kd7 {[%emt 0:00:45]} 43. Rc5 {[%emt 0:07:54]} Kd6 {[%emt 0:00:17]} 44. Rc6+ {[%emt 0:00:05]} Kd7 {[%emt 0:00:10]} 45. Rc5 {[%emt 0:00:12]} 1/2-1/2

[Event "22nd ETCC Women 2019"]
[Site "Batumi"]
[Date "2019.10.30"]
[Round "6.4"]
[White "Cibickova, Zuzana"]
[Black "Muetsch, Annmarie"]
[Result "0-1"]
[ECO "B48"]
[WhiteElo "2258"]
[BlackElo "2266"]
[Annotator "NA"]
[PlyCount "116"]
[EventDate "2019.10.24"]
[EventType "team-tourn"]
[EventCountry "GEO"]
[SourceTitle "playchess.com"]
[Source "ChessBase"]
[SourceQuality "1"]
[WhiteTeam "Slovakia"]
[BlackTeam "Germany"]
[WhiteTeamCountry "SVK"]
[BlackTeamCountry "GER"]
[TimeControl "40/5400+30:1800+30"]

1. e4 {[%emt 0:00:00]} c5 {[%emt 0:00:00]} 2. Nf3 {[%emt 0:00:00]} e6 {[%emt 0:00:00]} 3. d4 {[%emt 0:00:00]} cxd4 {[%emt 0:00:00]} 4. Nxd4 {[%emt 0:00:00]} Nc6 {[%emt 0:00:00]} 5. Nc3 {[%emt 0:00:00]} Qc7 {[%emt 0:00:09]} 6. Be3 {[%emt 0:00:08]} a6 {[%emt 0:00:07]} 7. Qf3 {[%emt 0:00:22]} Bd6 {[%emt 0:00:17]} 8. O-O-O {[%emt 0:02:32]} Be5 {[%emt 0:00:15]} 9. g3 {[%emt 0:00:35]} Nge7 {[%emt 0:00:22]} 10. Qe2 {[%emt 0:00:15]} b5 {[%emt 0:01:04]} 11. Qd2 {[%emt 0:01:36]} Bb7 {[%emt 0:33:50]} 12. f4 {[%emt 0:15:43]} Bxd4 {[%emt 0:00:17]} 13. Bxd4 {[%emt 0:00:04]} Nxd4 {[%emt 0:01:32]} 14. Qxd4 {[%emt 0:00:07]} f6 {[%emt 0:02:05]} 15. Bxb5 {[%emt 0:19:07]} axb5 {[%emt 0:08:30]} 16. Nxb5 {[%emt 0:00:02]} Qc6 {[%emt 0:00:22]} 17. Nd6+ {[%emt 0:08:33]} Kf8 {[%emt 0:00:06]} 18. Nxb7 {[%emt 0:02:02]} Qxb7 {[%emt 0:00:06]} 19. Qxd7 {[%emt 0:00:09]} Qxd7 {[%emt 0:01:20]} 20. Rxd7 {[%emt 0:00:02]} Rxa2 {[%emt 0:03:05]} 21. Rd8+ {[%emt 0:02:27]} Kf7 {[%emt 0:00:06]} 22. Rxh8 {[%emt 0:00:06]} Ra1+ {[%emt 0:00:03]} 23. Kd2 {[%emt 0:00:06]} Rxh1 {[%emt 0:00:06]} 24. Rxh7 {[%emt 0:06:05]} Kg8 {[%emt 0:01:53]} 25. Rh5 {[%emt 0:02:17]} g6 {[%emt 0:02:31]} 26. Rh3 {[%emt 0:03:36]} f5 {[%emt 0:08:51]} 27. exf5 {[%emt 0:02:33]} exf5 {[%emt 0:00:19]} 28. Kd3 {[%emt 0:04:40]} Rd1+ {[%emt 0:16:00]} 29. Kc4 {[%emt 0:04:06]} Rd2 {[%emt 0:03:13]} 30. Kc3 {[%emt 0:00:08]} Rg2 {[%emt 0:00:16]} 31. b3 {[%emt 0:06:33]} Kg7 {[%emt 0:03:19]} 32. Kd3 {[%emt 0:03:45]} Nd5 {[%emt 0:05:58]} 33. c4 {[%emt 0:09:37]} Nf6 {[%emt 0:03:57]} 34. Kc3 {[%emt 0:00:13]} Ne4+ {[%emt 0:01:11]} 35. Kb4 {[%emt 0:00:11]} Rc2 {[%emt 0:01:44]} 36. Rh4 {[%emt 0:03:18]} Nf2 {[%emt 0:01:05]} 37. Kb5 {[%emt 0:01:17]} Nd3 {[%emt 0:00:29]} 38. Ka5 {[%emt 0:05:24]} Rc3 {[%emt 0:02:09]} 39. Ka4 {[%emt 0:00:59]} Nc1 {[%emt 0:00:17]} 40. g4 {[%emt 0:00:00]} Rxb3 {[%emt 0:00:00]} 41. gxf5 {[%emt 0:01:53]} gxf5 {[%emt 0:06:22]} 42. c5 {[%emt 0:05:41]} Rb8 {[%emt 0:03:57]} 43. Rh3 {[%emt 0:05:14]} Ne2 {[%emt 0:02:09]} 44. Re3 {[%emt 0:01:36]} Nd4 {[%emt 0:00:50]} 45. Rd3 {[%emt 0:03:49]} Ne6 {[%emt 0:03:31]} 46. Rd7+ {[%emt 0:10:54]} Kf6 {[%emt 0:00:08]} 47. Rd6 {[%emt 0:00:06]} Ke7 {[%emt 0:00:15]} 48. Rd5 {[%emt 0:00:17]} Rf8 {[%emt 0:01:29]} 49. c6 {[%emt 0:01:51]} Nxf4 {[%emt 0:01:03]} 50. Rd1 {[%emt 0:01:25]} Ne6 {[%emt 0:09:23]} 51. Kb5 {[%emt 0:00:06]} f4 {[%emt 0:01:35]} 52. Kb6 {[%emt 0:01:12]} f3 {[%emt 0:01:33]} 53. Rf1 {[%emt 0:01:54]} f2 {[%emt 0:00:22]} 54. h4 {[%emt 0:00:15]} Rf5 {[%emt 0:04:37]} 55. c7 {[%emt 0:00:59]} Kd7 {[%emt 0:01:32]} 56. c8=Q+ {[%emt 0:01:34]} Kxc8 {[%emt 0:00:05]} 57. Kc6 {[%emt 0:00:22]} Ng7 {[%emt 0:00:23]} 58. Kd6 {[%emt 0:00:25]} Kd8 {[%emt 0:00:05]} 0-1

[Event "22nd ETCC Women 2019"]
[Site "Batumi"]
[Date "2019.10.30"]
[Round "6.5"]
[White "Eric, Jovana"]
[Black "Dzagnidze, Nana"]
[Result "0-1"]
[ECO "B40"]
[WhiteElo "2285"]
[BlackElo "2502"]
[Annotator "ChessBase"]
[PlyCount "172"]
[EventDate "2019.10.24"]
[EventType "team-tourn"]
[EventCountry "GEO"]
[SourceTitle "playchess.com"]
[Source "ChessBase"]
[SourceQuality "1"]
[WhiteTeam "Serbia"]
[BlackTeam "Georgia"]
[WhiteTeamCountry "SRB"]
[BlackTeamCountry "GEO"]
[TimeControl "40/5400+30:1800+30"]

1. e4 {[%emt 0:00:00]} c5 {[%emt 0:00:00]} 2. Nf3 {[%emt 0:00:00]} e6 {[%emt 0:00:00]} 3. g3 {[%emt 0:00:04]} Nc6 {[%emt 0:02:43]} 4. Bg2 {[%emt 0:00:56]} Nf6 {[%emt 0:01:04]} 5. Qe2 {[%emt 0:00:46]} Be7 {[%emt 0:06:21]} 6. O-O {[%emt 0:01:34]} O-O {[%emt 0:04:15]} 7. c3 {[%emt 0:01:39]} b6 {[%emt 0:02:01]} 8. d4 {[%emt 0:07:32]} cxd4 {[%emt 0:05:30]} 9. Nxd4 {[%emt 0:04:08]} Bb7 {[%emt 0:00:17]} 10. Rd1 {[%emt 0:03:26]} Rc8 {[%emt 0:10:49]} 11. Nxc6 {[%emt 0:08:03]} Bxc6 {[%emt 0:00:13]} 12. c4 {[%emt 0:00:17]} Qc7 {[%emt 0:03:02]} 13. Nc3 {[%emt 0:00:17]} d6 {[%emt 0:11:01]} 14. b3 {[%emt 0:04:43]} a6 {[%emt 0:01:53]} 15. Bb2 {[%emt 0:01:53]} Rfe8 {[%emt 0:07:36]} 16. Rac1 {[%emt 0:11:55]} Qb8 {[%emt 0:00:31]} 17. a4 {[%emt 0:01:50]} Nd7 {[%emt 0:02:55]} 18. Ba1 {[%emt 0:18:26]} Nc5 {[%emt 0:01:49]} 19. Rb1 {[%emt 0:01:20]} Bf6 {[%emt 0:02:41]} 20. f4 {[%emt 0:03:47]} Red8 {[%emt 0:12:54]} 21. h4 {[%emt 0:07:15]} a5 {[%emt 0:10:29]} 22. h5 {[%emt 0:01:40]} h6 {[%emt 0:00:25]} 23. Kh2 {[%emt 0:05:19]} Qb7 {[%emt 0:00:38]} 24. Re1 {[%emt 0:00:50]} Qa8 {[%emt 0:05:12]} 25. Qe3 {[%emt 0:01:55]} Re8 {[%emt 0:00:15]} 26. Nb5 {[%emt 0:03:52]} Bxa1 {[%emt 0:00:23]} 27. Rxa1 {[%emt 0:00:04]} Bxb5 {[%emt 0:04:32]} 28. axb5 {[%emt 0:00:08]} Qb8 {[%emt 0:00:02]} 29. Qc3 {[%emt 0:02:25]} Qc7 {[%emt 0:00:11]} 30. Red1 {[%emt 0:02:22]} Qe7 {[%emt 0:00:09]} 31. Ra2 {[%emt 0:01:15]} Red8 {[%emt 0:01:11]} 32. Rad2 {[%emt 0:01:23]} Rd7 {[%emt 0:00:11]} 33. Kg1 {[%emt 0:01:53]} Rcd8 {[%emt 0:00:29]} 34. b4 {[%emt 0:00:56]} axb4 {[%emt 0:00:07]} 35. Qxb4 {[%emt 0:00:05]} e5 {[%emt 0:00:20]} 36. Qb1 {[%emt 0:02:28]} exf4 {[%emt 0:02:16]} 37. gxf4 {[%emt 0:00:05]} Qh4 {[%emt 0:00:05]} 38. f5 Qxh5 {[%emt 0:02:24]} 39. e5 {[%emt 0:01:42]} dxe5 40. Rxd7 {[%emt 0:00:00]} Rxd7 {[%emt 0:00:00]} 41. Rxd7 {[%emt 0:00:19]} Nxd7 {[%emt 0:00:43]} 42. Qd3 Nc5 {[%emt 0:04:10]} 43. Qd8+ {[%emt 0:00:30]} Kh7 44. Qxb6 Qd1+ {[%emt 0:00:47]} 45. Kh2 {[%emt 0:01:55]} Qd4 {[%emt 0:00:08]} 46. Qc7 {[%emt 0:12:03]} Nd3 {[%emt 0:12:14]} 47. Qxf7 Qh4+ {[%emt 0:00:09]} 48. Kg1 {[%emt 0:00:57]} Qf2+ 49. Kh2 {[%emt 0:03:17]} Nf4 {[%emt 0:01:14]} 50. Qb7 Ne2 51. Qe4 {[%emt 0:06:01]} Qg3+ {[%emt 0:09:13]} 52. Kh1 {[%emt 0:00:06]} Qe1+ {[%emt 0:00:05]} 53. Kh2 {[%emt 0:00:00]} Qg1+ {[%emt 0:00:37]} 54. Kh3 {[%emt 0:00:41]} Nf4+ {[%emt 0:05:27]} 55. Kg3 Nh5+ {[%emt 0:00:11]} 56. Kf3 {[%emt 0:02:14]} Qd1+ {[%emt 0:01:46]} 57. Qe2 Qd4 {[%emt 0:00:16]} 58. Qe3 {[%emt 0:04:31]} Qxc4 {[%emt 0:00:21]} 59. b6 Nf6 60. Qxe5 {[%emt 0:01:55]} Qc6+ {[%emt 0:00:48]} 61. Kg3 {[%emt 0:00:42]} Qxb6 {[%emt 0:00:05]} 62. Bf3 {[%emt 0:00:28]} Qg1+ {[%emt 0:00:19]} 63. Bg2 {[%emt 0:00:19]} Qc1 64. Bf3 {[%emt 0:00:54]} Qd2 {[%emt 0:00:48]} 65. Qe6 {[%emt 0:01:50]} Qg5+ 66. Kf2 {[%emt 0:00:44]} Qf4 {[%emt 0:00:48]} 67. Ke2 h5 {[%emt 0:00:17]} 68. Bc6 {[%emt 0:03:04]} Kh6 {[%emt 0:01:34]} 69. Qc8 {[%emt 0:01:25]} Kg5 {[%emt 0:02:00]} 70. Qb7 {[%emt 0:01:19]} Kxf5 {[%emt 0:00:32]} 71. Bf3 {[%emt 0:00:35]} Kg6 {[%emt 0:01:57]} 72. Qb1+ {[%emt 0:00:19]} Kh6 {[%emt 0:00:08]} 73. Qb6 {[%emt 0:00:28]} Qe5+ {[%emt 0:00:59]} 74. Kf2 {[%emt 0:00:29]} g6 {[%emt 0:00:46]} 75. Qd8 {[%emt 0:00:33]} Qf4 {[%emt 0:00:52]} 76. Qf8+ {[%emt 0:00:44]} Kg5 {[%emt 0:00:02]} 77. Qe7 {[%emt 0:00:58]} Qd4+ {[%emt 0:00:29]} 78. Kg2 {[%emt 0:00:20]} Kf5 {[%emt 0:00:17]} 79. Qe2 {[%emt 0:00:32]} Nd5 {[%emt 0:01:08]} 80. Qc2+ {[%emt 0:00:34]} Kg5 {[%emt 0:00:30]} 81. Kh1 {[%emt 0:00:47]} Ne3 {[%emt 0:00:25]} 82. Qe2 {[%emt 0:00:28]} Qh4+ {[%emt 0:00:44]} 83. Kg1 {[%emt 0:00:09]} Qg3+ {[%emt 0:00:06]} 84. Kh1 {[%emt 0:00:06]} Kf4 {[%emt 0:00:25]} 85. Bc6 {[%emt 0:00:28]} Qh3+ {[%emt 0:01:07]} 86. Kg1 {[%emt 0:00:03]} Qg4+ {[%emt 0:00:07]} 0-1

[Event "22nd ETCC Women 2019"]
[Site "Batumi"]
[Date "2019.10.30"]
[Round "6.5"]
[White "Koridze, Lile"]
[Black "Haast, Anne"]
[Result "0-1"]
[ECO "A86"]
[WhiteElo "1988"]
[BlackElo "2288"]
[Annotator "NA"]
[PlyCount "86"]
[EventDate "2019.10.24"]
[EventType "team-tourn"]
[EventCountry "GEO"]
[SourceTitle "playchess.com"]
[Source "ChessBase"]
[SourceQuality "1"]
[WhiteTeam "Georgia"]
[BlackTeam "Netherlands"]
[WhiteTeamCountry "GEO"]
[BlackTeamCountry "NED"]
[TimeControl "40/5400+30:1800+30"]

1. d4 {[%emt 0:00:00]} f5 {[%emt 0:00:00]} 2. c4 {[%emt 0:00:00]} Nf6 {[%emt 0:00:07]} 3. g3 {[%emt 0:00:00]} g6 {[%emt 0:01:03]} 4. Bg2 {[%emt 0:00:00]} Bg7 {[%emt 0:00:23]} 5. Nh3 {[%emt 0:00:00]} O-O {[%emt 0:03:44]} 6. O-O {[%emt 0:00:00]} d6 {[%emt 0:01:32]} 7. Nc3 {[%emt 0:02:57]} e5 {[%emt 0:04:55]} 8. dxe5 {[%emt 0:14:33]} dxe5 {[%emt 0:00:15]} 9. Qxd8 {[%emt 0:01:59]} Rxd8 {[%emt 0:00:07]} 10. Nd5 {[%emt 0:00:31]} Nxd5 {[%emt 0:00:42]} 11. Bxd5+ {[%emt 0:00:09]} Kf8 {[%emt 0:00:28]} 12. Bg5 {[%emt 0:03:43]} Re8 {[%emt 0:04:08]} 13. Bd2 {[%emt 0:08:14]} a5 {[%emt 0:07:34]} 14. Rfd1 {[%emt 0:13:04]} c6 {[%emt 0:08:08]} 15. Bg2 {[%emt 0:00:26]} Be6 {[%emt 0:02:08]} 16. Rac1 {[%emt 0:03:15]} h6 {[%emt 0:05:56]} 17. b3 {[%emt 0:04:58]} Nd7 {[%emt 0:02:31]} 18. Bc3 {[%emt 0:03:35]} Nc5 {[%emt 0:03:08]} 19. Bb2 {[%emt 0:05:17]} Kf7 {[%emt 0:01:20]} 20. f3 {[%emt 0:03:51]} a4 {[%emt 0:08:52]} 21. b4 {[%emt 0:04:29]} a3 {[%emt 0:00:55]} 22. Ba1 {[%emt 0:02:21]} Na6 {[%emt 0:01:16]} 23. b5 {[%emt 0:03:44]} Nb4 {[%emt 0:03:07]} 24. Rd2 {[%emt 0:06:19]} cxb5 {[%emt 0:15:30]} 25. Bc3 {[%emt 0:10:23]} Ra4 {[%emt 0:01:45]} 26. Rb1 {[%emt 0:00:33]} Nxa2 {[%emt 0:01:16]} 27. Rxa2 {[%emt 0:00:18]} Bxc4 {[%emt 0:00:12]} 28. Rd2 {[%emt 0:01:17]} Re7 {[%emt 0:07:43]} 29. e4 {[%emt 0:00:37]} Rc7 {[%emt 0:01:58]} 30. Nf2 {[%emt 0:02:19]} Be6 {[%emt 0:00:51]} 31. Nd1 {[%emt 0:00:53]} b4 {[%emt 0:00:57]} 32. Rxb4 {[%emt 0:05:20]} Rxb4 {[%emt 0:00:51]} 33. Bxb4 a2 {[%emt 0:00:09]} 34. Rxa2 {[%emt 0:01:15]} Bxa2 {[%emt 0:00:11]} 35. Nc3 {[%emt 0:00:34]} Bc4 {[%emt 0:00:54]} 36. Nd5 {[%emt 0:00:20]} Bxd5 {[%emt 0:01:21]} 37. exd5 {[%emt 0:00:05]} Bf8 {[%emt 0:00:40]} 38. Bd2 {[%emt 0:01:07]} Rc5 {[%emt 0:00:54]} 39. Bf1 {[%emt 0:00:07]} b5 {[%emt 0:00:13]} 40. d6 {[%emt 0:00:00]} Rd5 {[%emt 0:00:00]} 41. Bb4 {[%emt 0:02:22]} Ke6 {[%emt 0:04:00]} 42. Kf2 {[%emt 0:01:16]} Bxd6 {[%emt 0:00:38]} 43. Bxd6 {[%emt 0:00:41]} Kxd6 {[%emt 0:00:09]} 0-1